bitfinex/quotes_BTCUSD_20250406
["timestamp","ask_amount","ask_price","bid_price","bid_amount"]
[1743977336828,0.01009265,78722.0,78681.0,0.46290297]
[1743977337000,0.01009265,78722.0,78697.0,0.00013591]
[1743977337174,0.005,78703.0,78699.0,0.34]
[1743977337509,0.005,78703.0,78701.0,0.34]
[1743977337858,0.005,78703.0,78702.0,0.12290297]
[1743977338445,0.01,78703.0,78702.0,0.12290297]
[1743977338822,0.005,78703.0,78702.0,0.12290297]
[1743977340004,0.01,78703.0,78702.0,0.12290297]
[1743977340185,0.005,78703.0,78702.0,0.12290297]
[1743977340632,0.0499,78723.0,78702.0,0.12290297]
[1743977340837,0.005,78703.0,78702.0,0.12290297]
[1743977341216,0.01,78703.0,78702.0,0.12290297]
[1743977341401,0.005,78703.0,78702.0,0.12290297]
[1743977341618,0.005,78703.0,78697.0,0.00013591]
[1743977341855,0.01,78703.0,78698.0,0.12290297]
[1743977342029,0.01939215,78702.0,78698.0,0.12290297]
[1743977342239,0.01939215,78702.0,78697.0,0.00013591]
[1743977342443,0.01939215,78702.0,78699.0,0.12290297]
[1743977342844,0.005,78703.0,78697.0,0.00013591]
[1743977343042,0.01939215,78701.0,78697.0,0.00013591]
[1743977343247,0.005,78703.0,78697.0,0.00013591]
[1743977343471,0.01939215,78700.0,78697.0,0.00013591]
[1743977343588,0.005,78702.0,78697.0,0.00013591]
[1743977343788,0.12290297,78701.0,78697.0,0.00013591]
[1743977343991,0.01454085,78696.0,78656.0,0.0001674]
[1743977344327,0.34,78677.0,78661.0,0.00030283]
[1743977344529,0.0923,78674.0,78661.0,0.00030283]
[1743977344704,0.34,78672.0,78661.0,0.00030283]
[1743977344905,0.01454085,78669.0,78661.0,0.00030283]
[1743977345226,0.01454085,78662.0,78656.0,0.0001674]
[1743977345426,0.35454085,78660.0,78656.0,0.0001674]
[1743977345644,0.34,78658.0,78656.0,0.0001674]
[1743977345851,0.01983269,78659.0,78656.0,0.00030306]
[1743977346169,0.31528,78658.0,78656.0,0.00030306]
[1743977346346,0.34,78657.0,78656.0,0.00030306]
[1743977346960,0.01983269,78657.0,78656.0,0.00030306]
[1743977347512,0.025,78703.0,78656.0,0.00030306]
[1743977347513,0.005,78658.0,78657.0,0.594268]
[1743977347714,0.005,78658.0,78657.0,0.81871492]
[1743977348070,0.31516,78695.0,78675.0,0.01271]
[1743977348322,0.31516,78695.0,78658.0,0.01454085]
[1743977348323,0.12290297,78695.0,78654.0,0.01454085]
[1743977348473,0.12290297,78695.0,78658.0,0.35454085]
[1743977348671,0.12290297,78695.0,78660.0,0.34]
[1743977348903,0.31488,78709.0,78672.0,0.01454085]
[1743977349104,0.12290297,78708.0,78672.0,0.12290297]
[1743977349259,0.12290297,78708.0,78673.0,0.12290297]
[1743977349903,0.005,78695.0,78673.0,0.12290297]
[1743977350105,0.005,78695.0,78676.0,0.254202]
[1743977350285,0.01,78695.0,78678.0,0.02725085]
[1743977350494,0.005,78695.0,78679.0,0.12544443]
[1743977350904,0.005,78708.0,78679.0,0.12544443]
[1743977351469,0.01,78708.0,78679.0,0.12544443]
[1743977351711,0.01,78708.0,78679.0,0.12290297]
[1743977351916,0.36182,78710.0,78679.0,0.12290297]
[1743977351917,0.34,78709.0,78679.0,0.12290297]
[1743977352331,0.34,78709.0,78678.0,0.01454085]
[1743977352332,0.005,78695.0,78653.0,0.34]
[1743977352488,0.005,78695.0,78675.0,0.35454085]
[1743977352690,0.36182,78710.0,78675.0,0.35454085]
[1743977352691,0.3114,78705.0,78677.0,0.01454085]
[1743977352892,0.3114,78705.0,78685.0,0.12290297]
[1743977353100,0.3114,78705.0,78688.0,0.01454085]
[1743977353301,0.3114,78705.0,78689.0,0.12290297]
[1743977353505,0.34,78704.0,78661.0,0.34]
[1743977353756,0.34,78704.0,78654.0,1.09908]
[1743977353920,0.12290297,78703.0,78657.0,0.12290297]
[1743977354121,0.12290297,78703.0,78658.0,0.34]
[1743977354425,0.12290297,78703.0,78660.0,0.34]
[1743977354613,0.12290297,78703.0,78661.0,0.12290297]
[1743977354826,0.34,78700.0,78661.0,0.12290297]
[1743977355033,0.34,78698.0,78661.0,0.12290297]
[1743977355260,0.34,78688.0,78656.0,0.00030306]
[1743977355503,0.06364085,78695.0,78656.0,0.00030306]
[1743977355504,0.34,78678.0,78656.0,0.00030306]
[1743977355745,0.34,78676.0,78656.0,0.00030306]
[1743977355947,0.0498,78673.0,78656.0,0.00030306]
[1743977356147,0.34,78671.0,78656.0,0.00030306]
[1743977356399,0.34,78669.0,78656.0,0.00030306]
[1743977356536,0.17230297,78668.0,78656.0,0.00030306]
[1743977356765,0.01976894,78667.0,78656.0,0.00030306]
[1743977356985,0.12290297,78657.0,78656.0,0.00030306]
[1743977357147,0.01920719,78666.0,78656.0,0.00030306]
[1743977357349,0.0494,78668.0,78656.0,0.00030306]
[1743977357549,0.01976894,78665.0,78657.0,0.12290297]
[1743977357870,0.0498,78673.0,78657.0,0.12290297]
[1743977357871,0.3114,78666.0,78657.0,0.12290297]
[1743977358114,0.3114,78666.0,78658.0,0.12290297]
[1743977358336,0.01976894,78665.0,78656.0,0.00030306]
[1743977358535,0.01976894,78665.0,78659.0,0.12290297]
[1743977359133,0.5167888,78665.0,78656.0,0.00030306]
[1743977359414,0.34,78663.0,78656.0,0.00030306]
[1743977359625,0.34,78661.0,78656.0,0.00030306]
[1743977359814,0.34,78659.0,78656.0,0.00030306]
[1743977360017,0.34,78657.0,78656.0,0.00030306]
[1743977360174,0.48879122,78657.0,78656.0,0.00030306]
[1743977360371,0.50856016,78657.0,78656.0,0.00030306]
[1743977360654,0.01976894,78657.0,78656.0,0.00030306]
[1743977361292,0.005,78659.0,78656.0,0.00030306]
[1743977361526,0.01976894,78657.0,78656.0,0.00030306]
[1743977361743,0.12290297,78657.0,78656.0,0.00030306]
[1743977361948,0.01976894,78657.0,78656.0,0.12320603]
[1743977362392,0.005,78657.0,78656.0,0.00030306]
[1743977362596,0.345,78657.0,78656.0,0.00030306]
[1743977362799,0.36476894,78657.0,78656.0,0.00030306]
[1743977363157,0.35976894,78657.0,78656.0,0.00030306]
[1743977363374,0.02976894,78657.0,78656.0,0.00030306]
[1743977363587,0.02976894,78657.0,78656.0,0.12320603]
[1743977363747,0.02476894,78657.0,78656.0,0.12320603]
[1743977363953,0.01,78657.0,78656.0,0.12320603]
[1743977364154,0.01,78657.0,78656.0,0.00030306]
[1743977364155,0.02976894,78657.0,78656.0,0.00030306]
[1743977364365,0.005,78657.0,78656.0,0.46320603]
[1743977364569,0.02476894,78657.0,78656.0,0.49045988]
[1743977364822,0.10977163,78687.0,78678.0,0.01271]
[1743977365050,0.10977163,78687.0,78680.0,0.266903]
[1743977365309,0.10977163,78687.0,78686.0,0.12290297]
[1743977365546,0.10977163,78687.0,78686.0,0.74432582]
[1743977365792,0.10977163,78687.0,78686.0,0.8922235]
[1743977365793,0.06957163,78687.0,78686.0,0.8922235]
[1743977366060,0.02427163,78687.0,78686.0,0.90529435]
[1743977366300,0.0471,78728.0,78718.0,0.266774]
[1743977366511,0.0471,78728.0,78718.0,0.12290297]
[1743977366717,0.0501348,78737.0,78718.0,0.49268723]
[1743977366914,0.0501348,78737.0,78718.0,0.49014682]
[1743977367126,0.0501348,78737.0,78718.0,0.59404214]
[1743977367351,0.0501348,78737.0,78718.0,0.12290297]
[1743977367583,0.0501348,78737.0,78718.0,0.12390297]
[1743977367584,0.00745198,78719.0,78718.0,0.12390297]
[1743977367889,0.00245198,78719.0,78718.0,0.12290297]
[1743977368044,0.00745198,78719.0,78718.0,0.13844382]
[1743977368260,0.00745198,78719.0,78718.0,0.1662616]
[1743977368828,0.01245198,78719.0,78718.0,0.1535586]
[1743977369235,0.01245198,78719.0,78718.0,0.12390297]
[1743977369438,0.00833198,78719.0,78718.0,0.12390297]
[1743977369647,0.00833198,78719.0,78718.0,0.001]
[1743977369880,0.02836687,78719.0,78718.0,0.001]
[1743977370081,0.54116984,78719.0,78718.0,0.001]
[1743977370633,0.41826687,78719.0,78718.0,0.001]
[1743977370842,0.34,78718.0,78685.0,0.01454085]
[1743977370963,0.34,78718.0,78687.0,0.13744382]
[1743977371201,0.02003489,78717.0,78689.0,0.01454085]
[1743977371403,0.02003489,78717.0,78690.0,0.12544408]
[1743977372639,0.02503489,78717.0,78690.0,0.12544408]
[1743977372834,0.02503489,78717.0,78690.0,0.12290297]
[1743977374012,0.14793786,78717.0,78690.0,0.12290297]
[1743977374191,0.35978379,78716.0,78690.0,0.12390297]
[1743977374393,0.3008,78715.0,78690.0,0.12390297]
[1743977374802,0.02003489,78714.0,78690.0,0.12390297]
[1743977374997,0.50810297,78713.0,78690.0,0.001]
[1743977375513,0.50810297,78713.0,78665.0,0.00968773]
[1743977375847,0.40025624,78712.0,78672.0,0.12290297]
[1743977376031,0.34,78710.0,78672.0,0.12290297]
[1743977376233,0.34,78708.0,78672.0,0.12290297]
[1743977376432,0.1336,78705.0,78672.0,0.12290297]
[1743977376669,0.12290297,78704.0,78672.0,0.12290297]
[1743977376857,0.14187676,78704.0,78672.0,0.12290297]
[1743977377059,0.14187676,78704.0,78656.0,0.0001674]
[1743977377060,0.02003489,78703.0,78656.0,0.0001674]
[1743977377291,0.34,78701.0,78656.0,0.0001674]
[1743977377489,0.34,78699.0,78656.0,0.0001674]
[1743977377644,0.34,78699.0,78672.0,0.12290297]
[1743977378475,0.14293786,78698.0,78672.0,0.12290297]
[1743977378680,0.34,78697.0,78656.0,0.0001674]
[1743977378881,0.34,78695.0,78656.0,0.0001674]
[1743977379033,0.34,78693.0,78656.0,0.0001674]
[1743977379239,0.34,78691.0,78656.0,0.0001674]
[1743977379636,0.34,78691.0,78672.0,0.12290297]
[1743977379906,0.34,78689.0,78672.0,0.12290297]
[1743977380034,0.29592,78690.0,78672.0,0.12335495]
[1743977380238,0.0196935,78689.0,78672.0,0.12335495]
[1743977380508,0.3596935,78689.0,78673.0,0.00254196]
[1743977380718,0.0196935,78689.0,78674.0,0.12290297]
[1743977380877,0.0196935,78689.0,78676.0,0.02725085]
[1743977381100,0.005,78689.0,78688.0,0.012708]
[1743977381393,0.005,78689.0,78688.0,0.12290297]
[1743977381635,0.005,78690.0,78688.0,0.12290297]
[1743977381830,0.0472,78696.0,78689.0,0.12290297]
[1743977382167,0.2946,78703.0,78689.0,0.12290297]
[1743977382367,0.2946,78703.0,78690.0,0.01454085]
[1743977382569,0.0196935,78701.0,78691.0,0.12290297]
[1743977383418,0.0196935,78701.0,78692.0,0.00254118]
[1743977383591,0.0196935,78701.0,78700.0,0.12290297]
[1743977383789,0.0454,78721.0,78703.0,0.01454085]
[1743977383995,0.34,78720.0,78704.0,0.12290297]
[1743977384196,0.33704,78721.0,78705.0,0.01454085]
[1743977384391,0.0196935,78719.0,78707.0,0.01454085]
[1743977384616,0.0499348,78737.0,78727.0,0.25404]
[1743977384813,0.0499348,78737.0,78728.0,0.1254431]
[1743977385369,0.0003348,78737.0,78734.0,0.26855985]
[1743977385610,0.0003348,78737.0,78734.0,0.40416282]
[1743977385949,0.0053348,78735.0,78734.0,0.41354081]
[1743977386137,0.0003348,78737.0,78736.0,0.0127]
[1743977386398,0.11093457,78744.0,78740.0,0.0127]
[1743977386613,0.11093457,78744.0,78742.0,0.01454085]
[1743977386814,0.11093457,78744.0,78743.0,0.13744382]
[1743977387001,0.11093457,78744.0,78743.0,0.15014282]
[1743977387710,0.28892,78766.0,78743.0,0.12290297]
[1743977387858,0.28892,78766.0,78744.0,0.05478461]
[1743977388056,0.28892,78766.0,78740.0,0.00013566]
[1743977388259,0.005,78744.0,78741.0,0.12290297]
[1743977388684,0.01,78744.0,78743.0,0.001]
[1743977388911,0.005,78744.0,78741.0,0.12290297]
[1743977389332,0.005,78744.0,78743.0,0.15014282]
[1743977389540,0.007,78749.0,78748.0,0.012698]
[1743977389745,0.2904144,78782.0,78772.0,0.012694]
[1743977389955,0.0003344,78782.0,78778.0,0.38947297]
[1743977390157,0.0003344,78782.0,78778.0,0.17766052]
[1743977390387,0.0003344,78782.0,78778.0,0.19035352]
[1743977390530,0.0003344,78782.0,78778.0,0.17766052]
[1743977390966,0.0003344,78782.0,78779.0,0.01454085]
[1743977391179,0.11093457,78790.0,78783.0,0.017693]
[1743977391461,0.00047143,78784.0,78783.0,0.2730345]
[1743977392241,0.11093457,78790.0,78789.0,0.012692]
[1743977392464,0.11093457,78790.0,78789.0,0.15013582]
[1743977392664,0.11093457,78790.0,78789.0,0.40397782]
[1743977393188,0.02,78806.0,78805.0,0.28102085]
[1743977393389,0.02,78806.0,78805.0,0.40392382]
[1743977393762,0.02,78806.0,78805.0,0.13744382]
[1743977393975,0.02,78806.0,78805.0,0.12290297]
[1743977394370,0.026,78806.0,78805.0,0.12290297]
[1743977394819,0.026,78806.0,78805.0,0.13744382]
[1743977395023,0.026,78806.0,78805.0,0.1511882]
[1743977395204,0.026,78806.0,78805.0,0.1638772]
[1743977395422,0.026,78806.0,78805.0,0.1511882]
[1743977395633,0.02,78806.0,78805.0,0.1638772]
[1743977396219,0.025,78806.0,78805.0,0.1638772]
[1743977396517,0.025,78806.0,78805.0,0.14399551]
[1743977396722,0.025,78806.0,78749.0,0.012698]
[1743977396723,0.34,78805.0,78749.0,0.012698]
[1743977396935,0.13744382,78802.0,78750.0,0.12290297]
[1743977397163,0.0493,78784.0,78749.0,0.12290297]
[1743977397427,0.15,78759.0,78688.0,0.012708]
[1743977397642,0.34,78750.0,78680.0,0.254191]
[1743977397869,0.34,78750.0,78669.0,0.005]
[1743977397870,0.02,78806.0,78779.0,0.266566]
[1743977398129,0.02,78806.0,78803.0,0.005]
[1743977398130,0.0948,78804.0,78803.0,0.005]
[1743977398368,0.0948,78804.0,78801.0,0.005]
[1743977398601,0.0948,78804.0,78792.0,0.012691]
[1743977398602,0.0948,78804.0,78803.0,0.005]
[1743977399312,0.0948,78804.0,78796.0,0.005]
[1743977399527,0.0948,78804.0,78762.0,0.025]
[1743977399528,0.0948,78804.0,78803.0,0.005]
[1743977399769,0.0948,78804.0,78803.0,0.12790297]
[1743977400042,0.0502,78804.0,78803.0,0.15338227]
[1743977400254,0.005,78804.0,78803.0,0.14069327]
[1743977400513,0.00045302,78805.0,78804.0,0.005]
[1743977400714,0.01,78804.0,78801.0,0.001]
[1743977400945,0.02031751,78803.0,78801.0,0.001]
[1743977401212,0.02031751,78803.0,78790.0,0.005]
[1743977401885,0.34,78801.0,78766.0,0.005]
[1743977402105,0.34,78801.0,78734.0,0.254016]
[1743977402106,0.3874,78799.0,78736.0,0.0127]
[1743977402353,0.0474,78796.0,78756.0,0.005]
[1743977402607,0.0451,78794.0,78763.0,0.005]
[1743977402852,1.29996927,78793.0,78757.0,0.12290297]
[1743977403091,0.0451,78792.0,78750.0,0.005]
[1743977403308,0.0498,78790.0,78751.0,0.12290297]
[1743977403523,0.0498,78789.0,78750.0,0.12290297]
[1743977403731,0.14337702,78788.0,78731.0,0.002]
[1743977403948,0.14337702,78788.0,78710.0,0.65833776]
[1743977403949,2.4941317,78696.0,78692.0,0.386232]
[1743977404158,2.4941317,78696.0,78695.0,0.13560997]
[1743977404365,2.51460575,78696.0,78695.0,0.13560997]
[1743977404568,2.51460575,78696.0,78695.0,0.01758583]
[1743977404569,0.02047405,78696.0,78695.0,0.01758583]
[1743977404772,0.28812,78724.0,78708.0,0.012705]
[1743977404974,0.02047405,78723.0,78712.0,0.01820567]
[1743977405178,0.02047405,78723.0,78705.0,0.012705]
[1743977405179,0.00012,78731.0,78725.0,0.352702]
[1743977405393,0.00012,78731.0,78730.0,0.47560397]
[1743977405942,0.00012,78731.0,78730.0,0.48501074]
[1743977406150,0.00012,78731.0,78730.0,0.47560397]
[1743977406356,0.00012,78731.0,78730.0,0.46290297]
[1743977406567,0.00012,78731.0,78730.0,0.18715103]
[1743977406769,0.00012,78731.0,78730.0,0.19985203]
[1743977407103,0.00512,78731.0,78730.0,0.18715103]
[1743977407271,0.00512,78731.0,78730.0,0.79388403]
[1743977407967,0.00512,78731.0,78730.0,0.80842488]
[1743977408172,0.01012,78731.0,78730.0,0.80842488]
[1743977408415,0.00662,78731.0,78730.0,0.80842488]
[1743977408617,0.28436,78773.0,78765.0,0.35454085]
[1743977408841,0.0484,78783.0,78776.0,0.012694]
[1743977409080,0.0003348,78838.0,78776.0,0.012694]
[1743977409081,0.0484,78800.0,78778.0,0.49013682]
[1743977409284,0.0657,78806.0,78791.0,0.28106785]
[1743977409488,0.02,78806.0,78791.0,0.74397082]
[1743977409717,0.02,78806.0,78805.0,0.60648]
[1743977409927,0.02,78806.0,78805.0,0.83248932]
[1743977410136,0.0003344,78814.0,78806.0,0.35454085]
[1743977410340,0.0003342,78816.0,78815.0,0.02722785]
[1743977410550,0.0007875,78816.0,78815.0,0.74642536]
[1743977410757,0.0007875,78816.0,78815.0,0.74388882]
[1743977410965,0.0991356,78850.0,78815.0,0.74388882]
[1743977410966,0.28352,78845.0,78822.0,0.62096285]
[1743977411168,0.28352,78845.0,78822.0,0.74386582]
[1743977411370,0.00047025,78823.0,78822.0,0.49012982]
[1743977411580,0.00047025,78823.0,78822.0,0.13744382]
[1743977412031,0.00047025,78823.0,78822.0,0.12290297]
[1743977412262,0.28283025,78823.0,78822.0,0.12390297]
[1743977412466,0.28783025,78823.0,78822.0,0.12390297]
[1743977412673,0.3083043,78823.0,78822.0,0.12390297]
[1743977412888,0.3083043,78823.0,78822.0,0.001]
[1743977413510,0.3083043,78823.0,78796.0,0.266509]
[1743977413511,0.05,78806.0,78777.0,0.012694]
[1743977413717,0.05,78806.0,78784.0,0.12290297]
[1743977413936,0.0209897,78805.0,78784.0,0.12290297]
[1743977414146,0.0209897,78804.0,78802.0,0.01269]
[1743977414347,0.28156,78811.0,78803.0,0.13744382]
[1743977414522,0.28156,78811.0,78805.0,0.01454085]
[1743977414523,0.0209897,78810.0,78805.0,0.01454085]
[1743977414748,0.0209897,78810.0,78807.0,0.01454085]
[1743977414960,0.28156,78811.0,78810.0,0.02722885]
[1743977415165,0.00047025,78823.0,78822.0,0.62096285]
[1743977415379,0.0482,78842.0,78837.0,0.012684]
[1743977415552,0.0213245,78838.0,78837.0,0.18183877]
[1743977415778,0.0003348,78838.0,78837.0,0.51930232]
[1743977416983,0.0003348,78838.0,78837.0,0.13744382]
[1743977417341,0.2789348,78838.0,78837.0,0.12290297]
[1743977417555,0.2999245,78838.0,78809.0,0.012688]
[1743977417755,0.3089245,78838.0,78837.0,0.001]
[1743977417971,0.3049245,78838.0,78837.0,0.001]
[1743977418174,0.2999245,78838.0,78815.0,0.35454085]
[1743977418379,0.0253245,78838.0,78837.0,0.12290297]
[1743977418622,0.0093348,78838.0,78837.0,0.47844382]
[1743977419076,0.0003348,78838.0,78837.0,0.47744382]
[1743977419297,0.0003348,78838.0,78837.0,0.13744382]
[1743977419492,0.0053348,78838.0,78837.0,0.13744382]
[1743977419743,0.0053348,78838.0,78837.0,0.1511882]
[1743977419898,0.0053348,78838.0,78837.0,0.1638722]
[1743977420506,0.0093348,78838.0,78837.0,0.1638722]
[1743977420717,0.0053348,78838.0,78837.0,0.1638722]
[1743977420912,0.0053348,78838.0,78837.0,0.5038722]
[1743977421114,0.0093348,78838.0,78837.0,0.5038722]
[1743977421328,0.0043348,78838.0,78837.0,0.5038722]
[1743977421809,0.0053348,78838.0,78837.0,0.5038722]
[1743977422190,0.0093348,78838.0,78837.0,0.12290297]
[1743977422512,0.0303245,78838.0,78837.0,0.12290297]
[1743977423445,0.0263245,78838.0,78837.0,0.12290297]
[1743977423898,0.0303245,78838.0,78837.0,0.12290297]
[1743977424980,0.0213245,78838.0,78837.0,0.12290297]
[1743977425098,0.0053348,78838.0,78837.0,0.12390297]
[1743977425300,0.0093348,78838.0,78837.0,0.12390297]
[1743977425745,0.0093348,78838.0,78837.0,0.50377177]
[1743977425918,0.0093348,78838.0,78837.0,0.75745877]
[1743977427087,0.0093348,78838.0,78837.0,0.15008777]
[1743977427088,0.0003348,78838.0,78837.0,0.15008777]
[1743977427297,0.0053348,78838.0,78837.0,0.15008777]
[1743977427504,0.0103348,78838.0,78837.0,0.16277177]
[1743977427656,0.0053348,78838.0,78837.0,0.16277177]
[1743977428245,8e-07,78839.0,78838.0,0.62090885]
[1743977428452,8e-05,78858.0,78857.0,0.62084485]
[1743977428710,8e-05,78858.0,78857.0,0.74374782]
[1743977428927,0.00021582,78858.0,78857.0,0.74374782]
[1743977430074,0.00021582,78858.0,78857.0,0.47744382]
[1743977430331,0.00021582,78858.0,78857.0,0.5924005]
[1743977430506,0.00021582,78858.0,78857.0,0.13744382]
[1743977431122,0.00921582,78858.0,78857.0,0.13744382]
[1743977431322,0.00921582,78858.0,78857.0,0.12290297]
[1743977432037,0.00921582,78858.0,78857.0,0.13744382]
[1743977432232,0.00921582,78858.0,78857.0,0.1511882]
[1743977432934,0.00421582,78858.0,78857.0,0.1511882]
[1743977433166,0.00421582,78858.0,78857.0,0.12290297]
[1743977433372,0.00921582,78858.0,78857.0,0.12290297]
[1743977433563,0.04303901,78858.0,78857.0,0.13744382]
[1743977433789,0.00921582,78858.0,78857.0,0.13744382]
[1743977433992,0.00521582,78858.0,78857.0,0.13744382]
[1743977434243,0.00521582,78858.0,78857.0,0.16412279]
[1743977434477,0.01021582,78858.0,78857.0,0.15397754]
[1743977434671,0.01021582,78858.0,78857.0,0.16665854]
[1743977434964,0.01021582,78858.0,78857.0,0.50412279]
[1743977435163,0.0003346,78870.0,78857.0,0.50412279]
[1743977435164,0.0003346,78870.0,78868.0,0.012679]
[1743977435364,0.0003346,78870.0,78868.0,0.43540943]
[1743977435686,0.0003346,78870.0,78868.0,0.45631825]
[1743977436063,0.0003346,78870.0,78868.0,0.79631825]
[1743977436263,0.0003344,78885.0,78880.0,0.266226]
[1743977436506,0.0003344,78885.0,78880.0,0.42711385]
[1743977436690,0.0003344,78885.0,78880.0,0.52307324]
[1743977437454,0.0003344,78885.0,78880.0,0.25684724]
[1743977437655,0.0003344,78885.0,78880.0,0.26952424]
[1743977437859,0.0003344,78885.0,78880.0,0.25684724]
[1743977437860,0.0033314,78881.0,78880.0,0.25684724]
[1743977438069,0.0003344,78885.0,78881.0,0.01454085]
[1743977438279,0.00046997,78883.0,78882.0,0.21319627]
[1743977438475,0.00046997,78883.0,78882.0,0.16088785]
[1743977438693,0.00046997,78883.0,78882.0,0.146347]
[1743977439120,0.00046997,78883.0,78882.0,0.02344403]
[1743977439121,0.42960997,78883.0,78882.0,0.02344403]
[1743977439328,0.80363493,78883.0,78882.0,0.02344403]
[1743977439782,0.80363493,78883.0,78850.0,0.00253539]
[1743977439783,0.34,78882.0,78850.0,0.012682]
[1743977439983,0.45863493,78883.0,78879.0,0.12290297]
[1743977439984,0.37460997,78883.0,78879.0,0.12290297]
[1743977440185,0.03402496,78882.0,78881.0,0.001]
[1743977440388,0.03402496,78882.0,78881.0,0.13844382]
[1743977440587,0.03402496,78882.0,78881.0,0.12390297]
[1743977440884,0.03402496,78882.0,78881.0,0.12290297]
[1743977441203,0.04402496,78882.0,78862.0,0.01178346]
[1743977441405,0.05,78870.0,78863.0,0.12290297]
[1743977441641,0.05,78869.0,78863.0,0.12290297]
[1743977441834,0.03402496,78869.0,78864.0,0.12543876]
[1743977442050,0.03402496,78869.0,78864.0,0.12290297]
[1743977442235,0.05,78881.0,78865.0,0.00253566]
[1743977442370,0.35,78882.0,78866.0,0.13744382]
[1743977442570,0.03402496,78881.0,78868.0,0.01454085]
[1743977442771,0.03402496,78881.0,78878.0,0.01454085]
[1743977442993,0.03402496,78881.0,78880.0,0.01454085]
[1743977443238,0.03402496,78881.0,78880.0,0.13744382]
[1743977443646,0.09976997,78883.0,78880.0,0.13744382]
[1743977443853,0.09976997,78883.0,78869.0,0.01522695]
[1743977443854,0.03402496,78881.0,78870.0,0.01454085]
[1743977444042,0.03402496,78881.0,78869.0,0.01522695]
[1743977444043,0.005,78881.0,78878.0,0.001]
[1743977444229,0.03402496,78880.0,78879.0,0.12290297]
[1743977444987,0.03402496,78880.0,78879.0,0.50241112]
[1743977445179,0.0003354,78897.0,78884.0,0.012676]
[1743977445388,0.0003354,78897.0,78884.0,0.4061905]
[1743977445594,0.0003342,78915.0,78884.0,0.4061905]
[1743977445595,0.0451,78914.0,78913.0,0.266115]
[1743977445803,0.07345413,78914.0,78913.0,0.12290297]
[1743977446023,0.07345413,78914.0,78892.0,0.01454085]
[1743977446200,0.005,78910.0,78894.0,0.01454085]
[1743977446493,0.0451,78914.0,78913.0,0.012672]
[1743977446700,0.0451,78914.0,78913.0,0.13744382]
[1743977446994,0.07845413,78914.0,78913.0,0.12290297]
[1743977447743,0.08145413,78914.0,78913.0,0.12290297]
[1743977447940,0.08045413,78914.0,78913.0,0.13519327]
[1743977448167,0.08545413,78914.0,78913.0,0.13519327]
[1743977448338,0.08045413,78914.0,78913.0,0.14973412]
[1743977448547,0.08045413,78914.0,78913.0,0.16240612]
[1743977448764,0.0521,78914.0,78913.0,0.14973412]
[1743977449167,0.007,78914.0,78913.0,0.16240612]
[1743977450113,0.007,78914.0,78913.0,0.18595982]
[1743977450248,0.007,78914.0,78913.0,0.52595982]
[1743977450428,0.00078696,78915.0,78914.0,0.60798085]
[1743977450631,0.00078696,78915.0,78914.0,0.6130135]
[1743977450834,0.00078696,78915.0,78914.0,0.6365672]
[1743977451450,0.00078696,78915.0,78914.0,0.64833541]
[1743977452057,0.0003338,78937.0,78936.0,0.012668]
[1743977452257,0.0472,78961.0,78949.0,0.253327]
[1743977452418,0.0472,78961.0,78960.0,0.12290297]
[1743977452620,0.04733582,78961.0,78960.0,0.13744382]
[1743977452822,0.04733582,78961.0,78960.0,0.31363879]
[1743977453029,0.02885897,78961.0,78960.0,0.32630279]
[1743977453364,0.00013582,78961.0,78960.0,0.41212687]
[1743977453766,0.15479387,78971.0,78960.0,0.41212687]
[1743977453767,0.15471349,78971.0,78964.0,0.253279]
[1743977453964,0.02872315,78970.0,78965.0,0.13556597]
[1743977454202,0.02872315,78970.0,78966.0,0.253273]
[1743977454406,0.045,78971.0,78967.0,0.12290297]
[1743977454586,0.045,78971.0,78970.0,0.265923]
[1743977454824,0.0472,78980.0,78977.0,0.253238]
[1743977455026,0.15791349,78986.0,78985.0,0.28041285]
[1743977455232,0.15804913,78986.0,78985.0,0.13744382]
[1743977455404,0.10984913,78986.0,78985.0,0.15010382]
[1743977455644,0.09286057,78986.0,78985.0,0.532968]
[1743977455776,5.7e-07,78989.0,78988.0,0.01266]
[1743977455991,0.0468,79016.0,78992.0,0.605849]
[1743977456195,0.0468,79016.0,78992.0,0.74329282]
[1743977457169,0.005,79015.0,78992.0,0.13744382]
[1743977457385,0.002,79049.0,79048.0,0.26566]
[1743977457599,0.002,79049.0,79048.0,0.77220002]
[1743977457811,0.0024526,79049.0,79048.0,0.78481863]
[1743977458466,0.0466,79077.0,79071.0,0.265583]
[1743977458682,0.00021571,79072.0,79071.0,0.74302682]
[1743977459107,0.00021571,79072.0,79071.0,0.47744382]
[1743977459337,0.00021571,79072.0,79071.0,0.1877176]
[1743977459771,0.00321571,79072.0,79071.0,0.12290297]
[1743977459975,0.00021571,79072.0,79071.0,0.13744382]
[1743977460147,0.0709,79071.0,79049.0,0.01454085]
[1743977460357,0.025,79040.0,79011.0,0.265782]
[1743977460561,0.025,79040.0,78994.0,0.005]
[1743977460562,0.025,79023.0,78991.0,0.012659]
[1743977460903,0.025,79018.0,79003.0,0.38871197]
[1743977461108,0.025,79018.0,79003.0,0.12290297]
[1743977461319,0.025,79014.0,79003.0,0.12290297]
[1743977461551,0.025,79009.0,79001.0,0.002]
[1743977461777,0.025,79007.0,79001.0,0.12490297]
[1743977461980,0.0729,79002.0,79001.0,0.002]
[1743977462223,0.0729,79002.0,78972.0,0.012662]
[1743977462224,0.025,78994.0,78972.0,0.012662]
[1743977462433,0.27996,78993.0,78982.0,0.012661]
[1743977462605,0.27996,78993.0,78986.0,0.01266]
[1743977462814,0.0297826,78992.0,78987.0,0.13556297]
[1743977463015,0.27996,78993.0,78987.0,0.12290297]
[1743977463226,0.0297826,78992.0,78987.0,0.12290297]
[1743977463551,0.0297826,78992.0,78987.0,0.0004526]
[1743977463780,0.025,78988.0,78987.0,0.0004526]
[1743977463931,0.025,78991.0,78987.0,0.0004526]
[1743977464133,0.025,78988.0,78987.0,0.0014526]
[1743977464367,0.0297826,78990.0,78987.0,0.12335557]
[1743977464547,0.28496,78993.0,78989.0,0.01454085]
[1743977464749,0.025,78991.0,78990.0,0.12290297]
[1743977464953,0.005,78993.0,78992.0,0.28038985]
[1743977465158,0.281,79017.0,79001.0,0.012658]
[1743977465365,0.281,79017.0,79015.0,0.012655]
[1743977465604,0.025,79015.0,79003.0,0.253152]
[1743977465742,0.0455,79018.0,79017.0,0.012655]